[Event "Late-Titled-Tuesday-Blitz-April-23-2024"]
[Site "Chess.com"]
[Date "2024.04.23"]
[Round "1"]
[White "Hirna2005"]
[Black "nabukatnezarr"]
[Result "0-1"]
[WhiteElo "2325"]
[BlackElo "2639"]
[TimeControl "180+1"]
[EndTime "14:07:03 PDT"]
[Termination "nabukatnezarr won by checkmate"]

1. e4 {[%clk 0:02:59.4]} 1... e5 {[%clk 0:02:55.6]} 2. Nf3 {[%clk 0:02:58.7]}
2... Nc6 {[%clk 0:02:53.3]} 3. Bc4 {[%clk 0:02:58.5]} 3... Nf6 {[%clk
0:02:50.6]} 4. d4 {[%clk 0:02:58.4]} 4... exd4 {[%clk 0:02:47.3]} 5. e5 {[%clk
0:02:58.2]} 5... d5 {[%clk 0:02:46.4]} 6. Bb5 {[%clk 0:02:58.3]} 6... Ne4 {[%clk
0:02:45.7]} 7. Nxd4 {[%clk 0:02:58.5]} 7... Bd7 {[%clk 0:02:44.8]} 8. Bxc6
{[%clk 0:02:58.6]} 8... bxc6 {[%clk 0:02:44.1]} 9. O-O {[%clk 0:02:59.2]} 9...
Bc5 {[%clk 0:02:43]} 10. Be3 {[%clk 0:02:58.9]} 10... Qe7 {[%clk 0:02:31.5]} 11.
Re1 {[%clk 0:02:50.9]} 11... O-O {[%clk 0:02:15.5]} 12. Nd2 {[%clk 0:02:40.2]}
12... Nxd2 {[%clk 0:02:02.5]} 13. Qxd2 {[%clk 0:02:39.9]} 13... Bb6 {[%clk
0:01:38.9]} 14. Bg5 {[%clk 0:02:35.6]} 14... Qe8 {[%clk 0:01:24.2]} 15. Bf6
{[%clk 0:02:35.7]} 15... h6 {[%clk 0:01:11.5]} 16. Re3 {[%clk 0:02:35]} 16...
Kh7 {[%clk 0:00:53.1]} 17. Qd3+ {[%clk 0:02:31.4]} 17... Kh8 {[%clk 0:00:43.4]}
18. Rae1 {[%clk 0:02:09.2]} 18... Rg8 {[%clk 0:00:31.5]} 19. Rg3 {[%clk
0:02:03.3]} 19... gxf6 {[%clk 0:00:28.8]} 20. Qd2 {[%clk 0:02:01.2]} 20... Rg5
{[%clk 0:00:25.3]} 21. exf6 {[%clk 0:01:58.4]} 21... Qg8 {[%clk 0:00:25.5]} 22.
Re7 {[%clk 0:01:50]} 22... Bxd4 {[%clk 0:00:15.8]} 23. Qxd4 {[%clk 0:01:43.4]}
23... Re8 {[%clk 0:00:15.5]} 24. Qh4 {[%clk 0:01:37.1]} 24... Kh7 {[%clk
0:00:12.9]} 25. Rxg5 {[%clk 0:01:28.5]} 25... Qxg5 {[%clk 0:00:13.8]} 26. Rxf7+
{[%clk 0:01:23.5]} 26... Kg8 {[%clk 0:00:05]} 27. g3 {[%clk 0:01:11.2]} 27...
Qxh4 {[%clk 0:00:02.9]} 28. Rg7+ {[%clk 0:01:10.9]} 28... Kh8 {[%clk 0:00:02.3]}
29. gxh4 {[%clk 0:01:11.3]} 29... Bh3 {[%clk 0:00:02]} 30. f3 {[%clk 0:01:11.3]}
30... Rg8 {[%clk 0:00:01.8]} 31. Rxg8+ {[%clk 0:01:08.6]} 31... Kxg8 {[%clk
0:00:01.7]} 32. Kf2 {[%clk 0:01:09.5]} 32... Kf7 {[%clk 0:00:02.6]} 33. Kg3
{[%clk 0:01:09.8]} 33... Be6 {[%clk 0:00:03.2]} 34. Kf4 {[%clk 0:01:08.8]} 34...
Kxf6 {[%clk 0:00:04.1]} 35. c3 {[%clk 0:01:08.9]} 35... c5 {[%clk 0:00:04.7]}
36. a4 {[%clk 0:01:08.6]} 36... Bf5 {[%clk 0:00:05.1]} 37. a5 {[%clk 0:01:06.9]}
37... d4 {[%clk 0:00:04.6]} 38. cxd4 {[%clk 0:01:05.9]} 38... cxd4 {[%clk
0:00:05.5]} 39. b4 {[%clk 0:01:04.2]} 39... Bd3 {[%clk 0:00:05.6]} 40. h5 {[%clk
0:01:03.1]} 40... a6 {[%clk 0:00:04.6]} 41. h4 {[%clk 0:01:02.3]} 41... c6
{[%clk 0:00:04.7]} 42. Kg3 {[%clk 0:01:02.2]} 42... Kf5 {[%clk 0:00:04.8]} 43.
Kf2 {[%clk 0:01:03.1]} 43... Kf4 {[%clk 0:00:05]} 44. Ke1 {[%clk 0:01:03.4]}
44... Kxf3 {[%clk 0:00:04.8]} 45. Kd2 {[%clk 0:01:04.3]} 45... Bb5 {[%clk
0:00:05]} 46. Kc2 {[%clk 0:01:04.2]} 46... Ke2 {[%clk 0:00:04.8]} 47. Kb3 {[%clk
0:01:04.1]} 47... d3 {[%clk 0:00:05.4]} 48. Kc3 {[%clk 0:01:04.6]} 48... d2
{[%clk 0:00:05.7]} 49. Kd4 {[%clk 0:01:05.5]} 49... d1=Q+ {[%clk 0:00:06]} 50.
Kc5 {[%clk 0:01:06.4]} 50... Qc2+ {[%clk 0:00:05.4]} 51. Kb6 {[%clk 0:01:07.3]}
51... Qc4 {[%clk 0:00:05.7]} 52. Kb7 {[%clk 0:01:08.1]} 52... Qxb4 {[%clk
0:00:06.1]} 53. Kb6 {[%clk 0:01:08.3]} 53... Qxh4 {[%clk 0:00:06]} 54. Kc5
{[%clk 0:01:08.4]} 54... Qxh5+ {[%clk 0:00:06.4]} 55. Kb4 {[%clk 0:01:08.4]}
55... Qh4+ {[%clk 0:00:06.9]} 56. Kc3 {[%clk 0:01:08.9]} 56... Qc4+ {[%clk
0:00:06.9]} 57. Kb2 {[%clk 0:01:09.3]} 57... Qb4+ {[%clk 0:00:07.6]} 58. Kc2
{[%clk 0:01:09.6]} 58... Bd3+ {[%clk 0:00:07.7]} 59. Kc1 {[%clk 0:01:09.4]}
59... Qb1# {[%clk 0:00:08.6]} 0-1

[Event "Late-Titled-Tuesday-Blitz-April-23-2024"]
[Site "Chess.com"]
[Date "2024.04.23"]
[Round "1"]
[White "Lennis93"]
[Black "Smiechu"]
[Result "1-0"]
[WhiteElo "2767"]
[BlackElo "2443"]
[TimeControl "180+1"]
[EndTime "14:07:06 PDT"]
[Termination "Lennis93 won by checkmate"]

1. d4 {[%clk 0:02:56.5]} 1... Nf6 {[%clk 0:02:59.3]} 2. c4 {[%clk 0:02:54.8]}
2... c5 {[%clk 0:02:59.9]} 3. d5 {[%clk 0:02:52.8]} 3... e6 {[%clk 0:03:00.5]}
4. Nc3 {[%clk 0:02:52.5]} 4... exd5 {[%clk 0:03:01]} 5. cxd5 {[%clk 0:02:53]}
5... d6 {[%clk 0:03:01.7]} 6. e4 {[%clk 0:02:52.1]} 6... g6 {[%clk 0:03:02.1]}
7. Bb5+ {[%clk 0:02:49.3]} 7... Nfd7 {[%clk 0:02:55.1]} 8. Bf4 {[%clk
0:02:38.2]} 8... a6 {[%clk 0:02:44.9]} 9. Be2 {[%clk 0:02:37.2]} 9... Bg7 {[%clk
0:02:40.1]} 10. Bxd6 {[%clk 0:02:36.3]} 10... Qb6 {[%clk 0:02:39.5]} 11. e5
{[%clk 0:02:24]} 11... Nxe5 {[%clk 0:02:36.5]} 12. Bxe5 {[%clk 0:01:44.1]} 12...
Bxe5 {[%clk 0:02:37.4]} 13. Qa4+ {[%clk 0:01:33.9]} 13... Bd7 {[%clk 0:02:34.6]}
14. Qe4 {[%clk 0:01:33.5]} 14... f6 {[%clk 0:02:22.5]} 15. O-O-O {[%clk
0:01:30]} 15... Bf5 {[%clk 0:02:14.4]} 16. Qe3 {[%clk 0:01:27.5]} 16... O-O
{[%clk 0:02:11.8]} 17. Nf3 {[%clk 0:01:27.4]} 17... Bd6 {[%clk 0:02:00.7]} 18.
Nh4 {[%clk 0:01:13.2]} 18... Qc7 {[%clk 0:01:57.9]} 19. g3 {[%clk 0:01:12.5]}
19... Bh3 {[%clk 0:01:50.1]} 20. Qh6 {[%clk 0:01:12]} 20... Qg7 {[%clk
0:01:38.4]} 21. Qxg7+ {[%clk 0:01:10.1]} 21... Kxg7 {[%clk 0:01:38.8]} 22. Ne4
{[%clk 0:01:10.6]} 22... Be5 {[%clk 0:01:32.8]} 23. Nxc5 {[%clk 0:01:09.3]}
23... Nd7 {[%clk 0:01:28.3]} 24. Ne6+ {[%clk 0:01:06.5]} 24... Kf7 {[%clk
0:01:23.8]} 25. Nxf8 {[%clk 0:01:05.7]} 25... Rxf8 {[%clk 0:01:24.4]} 26. f4
{[%clk 0:01:03.5]} 26... Bd6 {[%clk 0:01:21.8]} 27. Kb1 {[%clk 0:00:59.5]} 27...
Re8 {[%clk 0:01:16.6]} 28. Bd3 {[%clk 0:00:57.3]} 28... Nc5 {[%clk 0:01:13.4]}
29. Bc2 {[%clk 0:00:57]} 29... Re2 {[%clk 0:01:07.5]} 30. f5 {[%clk 0:00:49.4]}
30... g5 {[%clk 0:00:58]} 31. Nf3 {[%clk 0:00:49.5]} 31... Rf2 {[%clk
0:00:55.1]} 32. Nd4 {[%clk 0:00:49.3]} 32... Be5 {[%clk 0:00:50.8]} 33. Ne6
{[%clk 0:00:44.4]} 33... Nd7 {[%clk 0:00:34.5]} 34. Nd8+ {[%clk 0:00:36.1]}
34... Ke7 {[%clk 0:00:30]} 35. Nxb7 {[%clk 0:00:37]} 35... Nb6 {[%clk
0:00:15.8]} 36. d6+ {[%clk 0:00:36.4]} 36... Kd7 {[%clk 0:00:16.2]} 37. Nc5+
{[%clk 0:00:34.8]} 37... Kd8 {[%clk 0:00:16.1]} 38. d7 {[%clk 0:00:33.7]} 38...
Rxc2 {[%clk 0:00:09.5]} 39. Ne6+ {[%clk 0:00:33.5]} 39... Ke7 {[%clk 0:00:08.2]}
40. d8=Q+ {[%clk 0:00:34.4]} 40... Kf7 {[%clk 0:00:08.7]} 41. Qf8# {[%clk
0:00:35.3]} 1-0

[Event "Late-Titled-Tuesday-Blitz-April-23-2024"]
[Site "Chess.com"]
[Date "2024.04.23"]
[Round "1"]
[White "Nf3c5"]
[Black "tylityli"]
[Result "1-0"]
[WhiteElo "2632"]
[BlackElo "2319"]
[TimeControl "180+1"]
[EndTime "14:07:06 PDT"]
[Termination "Nf3c5 won on time"]

1. e4 {[%clk 0:02:56.8]} 1... e5 {[%clk 0:02:59.8]} 2. Nf3 {[%clk 0:02:56.9]}
2... Nc6 {[%clk 0:02:59.7]} 3. Nc3 {[%clk 0:02:57.4]} 3... Nf6 {[%clk
0:02:59.4]} 4. h3 {[%clk 0:02:57.9]} 4... Bb4 {[%clk 0:02:56.8]} 5. Nd5 {[%clk
0:02:56.8]} 5... Ba5 {[%clk 0:02:51.6]} 6. c3 {[%clk 0:02:30.7]} 6... Nxe4
{[%clk 0:02:42.4]} 7. d4 {[%clk 0:02:27.9]} 7... exd4 {[%clk 0:02:36.3]} 8. Bd3
{[%clk 0:02:26.8]} 8... dxc3 {[%clk 0:02:14]} 9. O-O {[%clk 0:02:24.6]} 9... Nc5
{[%clk 0:02:13]} 10. Ng5 {[%clk 0:01:34.1]} 10... d6 {[%clk 0:01:44]} 11. b4
{[%clk 0:01:21.5]} 11... Nxb4 {[%clk 0:01:33.6]} 12. Re1+ {[%clk 0:01:13.5]}
12... Be6 {[%clk 0:00:48.4]} 13. Nxe6 {[%clk 0:01:05.7]} 13... fxe6 {[%clk
0:00:47.1]} 14. Qh5+ {[%clk 0:00:46.4]} 14... Kd7 {[%clk 0:00:45.2]} 15. Nxb4
{[%clk 0:00:29.6]} 15... Bxb4 {[%clk 0:00:42.5]} 16. Bb5+ {[%clk 0:00:27.3]}
16... c6 {[%clk 0:00:39.3]} 17. Bc4 {[%clk 0:00:27.4]} 17... Qf6 {[%clk
0:00:28.1]} 18. Bg5 {[%clk 0:00:24.7]} 18... Qg6 {[%clk 0:00:27.7]} 19. Qh4
{[%clk 0:00:23.7]} 19... d5 {[%clk 0:00:24.4]} 20. Bf1 {[%clk 0:00:21]} 20...
Ba5 {[%clk 0:00:19.9]} 21. Be3 {[%clk 0:00:20.2]} 21... Ne4 {[%clk 0:00:17.5]}
22. Rab1 {[%clk 0:00:19.5]} 22... b5 {[%clk 0:00:14]} 23. Bd3 {[%clk 0:00:14.9]}
23... Qf6 {[%clk 0:00:09.1]} 24. Qg4 {[%clk 0:00:12.6]} 24... h5 {[%clk
0:00:07.4]} 25. Qe2 {[%clk 0:00:12.1]} 25... Bb6 {[%clk 0:00:06.8]} 26. Bxe4
{[%clk 0:00:12.2]} 26... dxe4 {[%clk 0:00:05.6]} 27. a4 {[%clk 0:00:12.1]} 27...
a6 {[%clk 0:00:02.9]} 28. Bxb6 {[%clk 0:00:10.2]} 28... Kc8 {[%clk 0:00:03.2]}
29. Rec1 {[%clk 0:00:09.6]} 29... Kb7 {[%clk 0:00:04.1]} 30. Be3 {[%clk
0:00:09.6]} 1-0

[Event "Late-Titled-Tuesday-Blitz-April-23-2024"]
[Site "Chess.com"]
[Date "2024.04.23"]
[Round "1"]
[White "TheBigBoss04"]
[Black "TheFireChess"]
[Result "1-0"]
[WhiteElo "2792"]
[BlackElo "2449"]
[TimeControl "180+1"]
[EndTime "14:07:09 PDT"]
[Termination "TheBigBoss04 won by resignation"]

1. Nf3 {[%clk 0:02:58.4]} 1... Nf6 {[%clk 0:02:54.1]} 2. c4 {[%clk 0:02:55.8]}
2... e6 {[%clk 0:02:53.5]} 3. g3 {[%clk 0:02:54.7]} 3... d5 {[%clk 0:02:53.8]}
4. d4 {[%clk 0:02:54.2]} 4... Bb4+ {[%clk 0:02:50.3]} 5. Bd2 {[%clk 0:02:53.6]}
5... a5 {[%clk 0:02:50.2]} 6. Bg2 {[%clk 0:02:48.4]} 6... O-O {[%clk 0:02:49]}
7. a3 {[%clk 0:02:41.3]} 7... Be7 {[%clk 0:02:46.7]} 8. Qc2 {[%clk 0:02:39.8]}
8... c5 {[%clk 0:02:33.6]} 9. cxd5 {[%clk 0:02:28.7]} 9... cxd4 {[%clk
0:02:28.7]} 10. Nxd4 {[%clk 0:02:26.5]} 10... Nxd5 {[%clk 0:02:24.7]} 11. O-O
{[%clk 0:02:21.1]} 11... Bf6 {[%clk 0:02:23.9]} 12. e3 {[%clk 0:02:10.8]} 12...
Bd7 {[%clk 0:02:19.1]} 13. Nc3 {[%clk 0:02:09.1]} 13... Nxc3 {[%clk 0:02:15.2]}
14. Bxc3 {[%clk 0:02:07.9]} 14... Nc6 {[%clk 0:02:05.7]} 15. Nb5 {[%clk
0:01:52.6]} 15... Bxc3 {[%clk 0:01:52.5]} 16. Qxc3 {[%clk 0:01:49.5]} 16... Qb6
{[%clk 0:01:52.4]} 17. Nd6 {[%clk 0:01:46.9]} 17... Rfd8 {[%clk 0:01:50.6]} 18.
Rfd1 {[%clk 0:01:43.6]} 18... a4 {[%clk 0:01:45.2]} 19. Rd2 {[%clk 0:01:31]}
19... h6 {[%clk 0:01:41.9]} 20. Rad1 {[%clk 0:01:29.5]} 20... Be8 {[%clk
0:01:36.5]} 21. h4 {[%clk 0:01:12.1]} 21... Rab8 {[%clk 0:01:14.7]} 22. Kh2
{[%clk 0:01:01]} 22... Ne7 {[%clk 0:01:00]} 23. Nc4 {[%clk 0:00:44.4]} 23... Qc7
{[%clk 0:00:58.5]} 24. Rxd8 {[%clk 0:00:42.4]} 24... Rxd8 {[%clk 0:00:59.4]} 25.
Rxd8 {[%clk 0:00:42.3]} 25... Qxd8 {[%clk 0:01:00.3]} 26. Bxb7 {[%clk
0:00:40.9]} 26... Qb8 {[%clk 0:00:55.1]} 27. Bg2 {[%clk 0:00:35]} 27... Bc6
{[%clk 0:00:51.6]} 28. Bxc6 {[%clk 0:00:28.7]} 28... Nxc6 {[%clk 0:00:52.5]} 29.
Nd2 {[%clk 0:00:24.6]} 29... Ne5 {[%clk 0:00:49.7]} 30. Qd4 {[%clk 0:00:16]}
30... Qb5 {[%clk 0:00:40.9]} 31. Kg2 {[%clk 0:00:09.8]} 31... Qc6+ {[%clk
0:00:38.2]} 32. e4 {[%clk 0:00:09.6]} 32... Qb5 {[%clk 0:00:35.1]} 33. Nf3
{[%clk 0:00:09.6]} 33... Nc6 {[%clk 0:00:34.1]} 34. Qd7 {[%clk 0:00:08.9]} 34...
Qc5 {[%clk 0:00:31.5]} 35. Qe8+ {[%clk 0:00:08.9]} 35... Kh7 {[%clk 0:00:30.7]}
36. Qxf7 {[%clk 0:00:09.2]} 36... Qe7 {[%clk 0:00:27.2]} 37. Qxe7 {[%clk
0:00:08.8]} 37... Nxe7 {[%clk 0:00:28.1]} 38. Nd4 {[%clk 0:00:09]} 38... e5
{[%clk 0:00:28.3]} 39. Nb5 {[%clk 0:00:09.2]} 39... Nc6 {[%clk 0:00:27.3]} 40.
Nc3 {[%clk 0:00:09.5]} 1-0

[Event "Late-Titled-Tuesday-Blitz-April-23-2024"]
[Site "Chess.com"]
[Date "2024.04.23"]
[Round "1"]
[White "chess_blitz00"]
[Black "Hikaru"]
[Result "0-1"]
[WhiteElo "2550"]
[BlackElo "3311"]
[TimeControl "180+1"]
[EndTime "14:07:10 PDT"]
[Termination "Hikaru won by checkmate"]

1. e4 {[%clk 0:03:00.9]} 1... a6 {[%clk 0:03:00.9]} 2. d4 {[%clk 0:03:00.6]}
2... c6 {[%clk 0:02:59.1]} 3. Nc3 {[%clk 0:03:01.5]} 3... d5 {[%clk 0:02:59.2]}
4. Nf3 {[%clk 0:02:58.4]} 4... Bg4 {[%clk 0:02:58.9]} 5. Be2 {[%clk 0:02:51.3]}
5... g6 {[%clk 0:02:52.5]} 6. h3 {[%clk 0:02:48.5]} 6... Bxf3 {[%clk 0:02:52.3]}
7. Bxf3 {[%clk 0:02:49.4]} 7... e6 {[%clk 0:02:52.9]} 8. Be3 {[%clk 0:02:44.5]}
8... Bg7 {[%clk 0:02:53]} 9. Qd2 {[%clk 0:02:42]} 9... Nd7 {[%clk 0:02:52.9]}
10. O-O-O {[%clk 0:02:40.9]} 10... b5 {[%clk 0:02:52.4]} 11. exd5 {[%clk
0:02:19.3]} 11... cxd5 {[%clk 0:02:53.3]} 12. Rhe1 {[%clk 0:02:19]} 12... Nb6
{[%clk 0:02:53.1]} 13. Bg5 {[%clk 0:02:15]} 13... Ne7 {[%clk 0:02:51]} 14. Bxe7
{[%clk 0:02:11.1]} 14... Kxe7 {[%clk 0:02:50.2]} 15. Kb1 {[%clk 0:01:44.6]}
15... Rc8 {[%clk 0:02:49.4]} 16. Qg5+ {[%clk 0:01:42.7]} 16... Kd7 {[%clk
0:02:42.5]} 17. Qxd8+ {[%clk 0:01:41.3]} 17... Rhxd8 {[%clk 0:02:42.4]} 18. Ne2
{[%clk 0:01:35.1]} 18... b4 {[%clk 0:02:41.3]} 19. Nc1 {[%clk 0:01:31.2]} 19...
Kd6 {[%clk 0:02:37.3]} 20. Nb3 {[%clk 0:01:28.3]} 20... Nc4 {[%clk 0:02:35.9]}
21. Nc5 {[%clk 0:01:07.6]} 21... Rxc5 {[%clk 0:02:34.6]} 22. dxc5+ {[%clk
0:01:07.4]} 22... Kxc5 {[%clk 0:02:35.5]} 23. Be2 {[%clk 0:00:25.1]} 23... Nxb2
{[%clk 0:02:35]} 24. Bxa6 {[%clk 0:00:25]} 24... Nxd1 {[%clk 0:02:33.2]} 25.
Rxd1 {[%clk 0:00:25.9]} 25... Bc3 {[%clk 0:02:33.1]} 26. f3 {[%clk 0:00:20.5]}
26... e5 {[%clk 0:02:32.4]} 27. Bd3 {[%clk 0:00:20.2]} 27... f5 {[%clk
0:02:32.3]} 28. g4 {[%clk 0:00:16.1]} 28... Rf8 {[%clk 0:02:31.8]} 29. gxf5
{[%clk 0:00:16.2]} 29... gxf5 {[%clk 0:02:32.7]} 30. Rg1 {[%clk 0:00:10.4]}
30... e4 {[%clk 0:02:32.8]} 31. Be2 {[%clk 0:00:10.8]} 31... f4 {[%clk
0:02:32.4]} 32. a3 {[%clk 0:00:07.9]} 32... Kd4 {[%clk 0:02:31.3]} 33. Bb5
{[%clk 0:00:02.8]} 33... bxa3 {[%clk 0:02:28.1]} 34. Ka2 {[%clk 0:00:03.1]}
34... exf3 {[%clk 0:02:28.3]} 35. Rd1+ {[%clk 0:00:03.2]} 35... Kc5 {[%clk
0:02:28.3]} 36. Bf1 {[%clk 0:00:03.2]} 36... Re8 {[%clk 0:02:26.8]} 37. Rd3
{[%clk 0:00:03.5]} 37... Re3 {[%clk 0:02:26.8]} 38. h4 {[%clk 0:00:02]} 38... d4
{[%clk 0:02:27]} 39. Rd1 {[%clk 0:00:01.8]} 39... Bb2 {[%clk 0:02:26.1]} 40. Bd3
{[%clk 0:00:02]} 40... f2 {[%clk 0:02:26.5]} 41. Rf1 {[%clk 0:00:02.4]} 41...
Re1 {[%clk 0:02:22.2]} 42. Rxf2 {[%clk 0:00:02.3]} 42... Kb4 {[%clk 0:02:22.8]}
43. Rf1 {[%clk 0:00:01.8]} 43... Rxf1 {[%clk 0:02:23.4]} 44. Bxf1 {[%clk
0:00:02.6]} 44... f3 {[%clk 0:02:21.9]} 45. Bd3 {[%clk 0:00:03.5]} 45... f2
{[%clk 0:02:21.8]} 46. h5 {[%clk 0:00:04]} 46... h6 {[%clk 0:02:21.8]} 47. Kb1
{[%clk 0:00:04.5]} 47... Kc3 {[%clk 0:02:22.2]} 48. Ka2 {[%clk 0:00:04.9]} 48...
Kd2 {[%clk 0:02:22.5]} 49. Bf1 {[%clk 0:00:04.9]} 49... Ke3 {[%clk 0:02:22.8]}
50. Bd3 {[%clk 0:00:05.2]} 50... Kf4 {[%clk 0:02:23.3]} 51. Bf1 {[%clk
0:00:05.5]} 51... Kg5 {[%clk 0:02:23.9]} 52. Be2 {[%clk 0:00:06.2]} 52... Kh4
{[%clk 0:02:23.8]} 53. Kb1 {[%clk 0:00:05.8]} 53... Kg3 {[%clk 0:02:23.1]} 54.
Bf1 {[%clk 0:00:06.2]} 54... Kh2 {[%clk 0:02:23.6]} 55. Ka2 {[%clk 0:00:05.9]}
55... Kg1 {[%clk 0:02:24.2]} 56. Be2 {[%clk 0:00:06.4]} 56... f1=Q {[%clk
0:02:24.8]} 57. Bxf1 {[%clk 0:00:07]} 57... Kxf1 {[%clk 0:02:25.7]} 58. Kb1
{[%clk 0:00:07.3]} 58... Bc3 {[%clk 0:02:25.9]} 59. Ka2 {[%clk 0:00:07.4]} 59...
Kf2 {[%clk 0:02:26.8]} 60. Kxa3 {[%clk 0:00:07.4]} 60... Kf3 {[%clk 0:02:27.7]}
61. Kb3 {[%clk 0:00:08.2]} 61... Kg4 {[%clk 0:02:28.6]} 62. Kc4 {[%clk
0:00:08.8]} 62... Kxh5 {[%clk 0:02:29.5]} 63. Kd3 {[%clk 0:00:09.5]} 63... Kg4
{[%clk 0:02:30.4]} 64. Ke2 {[%clk 0:00:09.4]} 64... Kg3 {[%clk 0:02:31]} 65. Kf1
{[%clk 0:00:09.6]} 65... Kh2 {[%clk 0:02:31.9]} 66. Kf2 {[%clk 0:00:09.8]} 66...
h5 {[%clk 0:02:32.8]} 67. Kf3 {[%clk 0:00:10.3]} 67... h4 {[%clk 0:02:33.7]} 68.
Kf2 {[%clk 0:00:11.1]} 68... h3 {[%clk 0:02:34.6]} 69. Kf1 {[%clk 0:00:11.4]}
69... Kg3 {[%clk 0:02:34.9]} 70. Kg1 {[%clk 0:00:12.1]} 70... h2+ {[%clk
0:02:31.5]} 71. Kh1 {[%clk 0:00:13]} 71... Ba5 {[%clk 0:02:31.7]} 72. c4 {[%clk
0:00:11.3]} 72... d3 {[%clk 0:02:32.1]} 73. c5 {[%clk 0:00:11]} 73... d2 {[%clk
0:02:32.5]} 74. c6 {[%clk 0:00:11.9]} 74... d1=N {[%clk 0:01:55]} 75. c7 {[%clk
0:00:12.8]} 75... Bb6 {[%clk 0:01:54.4]} 76. c8=Q {[%clk 0:00:08]} 76... Nf2#
{[%clk 0:01:41]} 0-1

[Event "Late-Titled-Tuesday-Blitz-April-23-2024"]
[Site "Chess.com"]
[Date "2024.04.23"]
[Round "1"]
[White "jstopa4"]
[Black "zsizsi99"]
[Result "1-0"]
[WhiteElo "2815"]
[BlackElo "2465"]
[TimeControl "180+1"]
[EndTime "14:07:10 PDT"]
[Termination "jstopa4 won by resignation"]

1. d4 {[%clk 0:02:59.4]} 1... Nf6 {[%clk 0:02:56.5]} 2. Bg5 {[%clk 0:02:57.7]}
2... d5 {[%clk 0:02:54.7]} 3. Nd2 {[%clk 0:02:56.2]} 3... c5 {[%clk 0:02:47.2]}
4. e3 {[%clk 0:02:54.9]} 4... Qb6 {[%clk 0:02:43.4]} 5. dxc5 {[%clk 0:02:43.9]}
5... Qxb2 {[%clk 0:02:41.6]} 6. c4 {[%clk 0:02:16.9]} 6... dxc4 {[%clk 0:02:31]}
7. Bxc4 {[%clk 0:02:16.3]} 7... Nc6 {[%clk 0:02:10.7]} 8. Ngf3 {[%clk
0:02:07.4]} 8... e6 {[%clk 0:02:01.2]} 9. Rb1 {[%clk 0:02:03.5]} 9... Qa3 {[%clk
0:01:44.1]} 10. Bxf6 {[%clk 0:01:42.8]} 10... gxf6 {[%clk 0:01:44]} 11. Ne4
{[%clk 0:01:37.8]} 11... f5 {[%clk 0:01:31.2]} 12. Nd6+ {[%clk 0:01:19.2]} 12...
Bxd6 {[%clk 0:01:30.4]} 13. Qxd6 {[%clk 0:01:05.7]} 13... Qc3+ {[%clk
0:01:06.6]} 14. Nd2 {[%clk 0:01:05.6]} 14... Qe5 {[%clk 0:01:07.2]} 15. Qd3
{[%clk 0:00:44.8]} 15... Qxc5 {[%clk 0:01:02.9]} 16. Rb5 {[%clk 0:00:44.8]}
16... Qe7 {[%clk 0:00:56]} 17. O-O {[%clk 0:00:44.2]} 17... a6 {[%clk 0:00:30]}
18. Rb6 {[%clk 0:00:43.4]} 18... Qd8 {[%clk 0:00:30.1]} 19. Qc3 {[%clk
0:00:38.5]} 19... O-O {[%clk 0:00:13.3]} 20. Rfb1 {[%clk 0:00:38]} 20... Qd6
{[%clk 0:00:07.5]} 21. Nf1 {[%clk 0:00:28.2]} 21... Rd8 {[%clk 0:00:07.8]} 22.
e4 {[%clk 0:00:28.2]} 22... Qe5 {[%clk 0:00:07.9]} 23. Qh3 {[%clk 0:00:25.3]}
23... Qxe4 {[%clk 0:00:07]} 24. Ne3 {[%clk 0:00:18.6]} 24... Ne5 {[%clk
0:00:07.3]} 25. Bf1 {[%clk 0:00:18.1]} 25... Ng6 {[%clk 0:00:07.5]} 26. Qh6
{[%clk 0:00:17.6]} 26... Qd4 {[%clk 0:00:07]} 27. Qg5 {[%clk 0:00:17.4]} 27...
Re8 {[%clk 0:00:04.6]} 28. R6b4 {[%clk 0:00:16.8]} 28... Qg7 {[%clk 0:00:05.1]}
29. h4 {[%clk 0:00:15.5]} 29... b5 {[%clk 0:00:05.7]} 30. h5 {[%clk 0:00:15.7]}
30... Ne5 {[%clk 0:00:05.8]} 31. Qh4 {[%clk 0:00:15.7]} 31... Ng4 {[%clk
0:00:06.1]} 32. Nxg4 {[%clk 0:00:15.4]} 32... a5 {[%clk 0:00:05.2]} 33. Nf6+
{[%clk 0:00:15.2]} 33... Kh8 {[%clk 0:00:05.5]} 34. Nxe8 {[%clk 0:00:14.6]}
34... Qe5 {[%clk 0:00:05.8]} 35. R4b3 {[%clk 0:00:13.5]} 1-0